Cogmind - Beta 13 @@@ ROGUE MODE // 2024.05.04 @ 05:33:42 Player: ToasterKoishi Result: Destroyed by Light Deuterium Engine chain reaction Performance ------------- Evolutions (2) 1000 Regions Visited (4) 800 Robots Destroyed (0) 0 Value Destroyed (0) 0 Prototype IDs (1) 20 Alien Tech Used (0) 0 Bonus (470) 470 TOTAL SCORE: 2290 Bonus ------- Pacifist 470 Cogmind --------- Core Integrity 0/550 Matter 253/300 Energy 66/100 System Corruption 0% Temperature Cool (16) Movement Flying (31) Location -8/Storage Parts ------- > --- POWER (1) -------- (None) > --- PROPULSION (4) --- Improved Flight Unit Improved Flight Unit Improved Flight Unit Improved Flight Unit > --- UTILITY (4) ------ (None) > --- WEAPON (2) ------- (None) > --- INVENTORY (5) ---- Improved Flight Unit Improved Flight Unit Missile Launcher Peak State ------------ > --- POWER ------------ Light Deuterium Engine > --- PROPULSION ------- Improved Flight Unit Improved Flight Unit Improved Flight Unit Improved Flight Unit > --- UTILITY ---------- (None) > --- WEAPON ----------- (None) > --- INVENTORY -------- Improved Flight Unit Improved Flight Unit Missile Launcher [Rating: 15] Favorites ----------- Power Light Deuterium Engine Engine Light Deuterium Engine Propulsion Improved Flight Unit Flight Unit Improved Flight Unit Utility None Weapon None Build | -11 -10 -9 -8 -8 ------- Run | Yrd Mat Mat Mat Sto Slots Evolved 4 | . . 2 2 . Power . | . . . . . Propulsion 2 | . . 2 . . Utility 2 | . . . 2 . Weapon . | . . . . . Parts Attached 5 | . . . . 5 Power 1 | . . . . 1 Engine 1 | . . . . 1 Core . | . . . . . Reactor . | . . . . . Propulsion 4 | . . . . 4 Treads . | . . . . . Leg . | . . . . . Wheel . | . . . . . Hover . | . . . . . Flight 4 | . . . . 4 Utility . | . . . . . Device . | . . . . . Storage . | . . . . . Processor . | . . . . . Hackware . | . . . . . Protection . | . . . . . Artifact . | . . . . . Weapon . | . . . . . Energy Gun . | . . . . . Energy Cannon . | . . . . . Ballistic Gun . | . . . . . Ballistic Cannon . | . . . . . Launcher . | . . . . . Special Weapon . | . . . . . Impact Weapon . | . . . . . Slashing Weapon . | . . . . . Piercing Weapon . | . . . . . Special Melee Weapon . | . . . . . Unidentified Prototypes 1 | . . . . 1 Parts Lost 1 | . . . . 1 Power 1 | . . . . 1 Propulsion . | . . . . . Utility . | . . . . . Weapon . | . . . . . Highest Loss Streak 1 | . . . . 1 To Critical Strikes . | . . . . . Average Slot Usage (%) 7 | . . . . 12 Flight 6 | . . . . 12 Naked Turns 172 | . 29 44 17 82 Heaviest Build 5 | . . . . 5 Greatest Support 20 | 3 3 3 3 20 Greatest Overweight (x) . | . . . . . Average Overweight (x) . | . . . . . Largest Inventory Capacity 5 | 5 5 5 5 5 Average Capacity 5 | 5 5 5 5 5 Most Carried 3 | . . . 1 3 Average Carried . | . . . . 1 Final Capacity 5 | 5 5 5 5 5 Final Carried 3 | . . . 1 3 Class Distribution -------------------- 100% | Mutant Dominant Class ---------------- Mutant | -10/Materials Mutant | -9/Materials Mutant | -8/Materials Mutant | -8/Storage Resources | -11 -10 -9 -8 -8 ----------- Run | Yrd Mat Mat Mat Sto Matter Collected 203 | 200 . . . 3 Remotely . | . . . . . Salvage Created . | . . . . . Parts . | . . . . . Haulers Intercepted . | . . . . . Recyclers Shooed . | . . . . . Parts Field Recycled . | . . . . . Retrieved Matter . | . . . . . Parts Self-Destructed . | . . . . . Prevented . | . . . . . Kills | -11 -10 -9 -8 -8 ------- Run | Yrd Mat Mat Mat Sto Combat Hostiles Destroyed . | . . . . . Classes Destroyed . | . . . . . Best Kill Streak . | . . . . . Combat Bots Only . | . . . . . Max Kills in Single Turn . | . . . . . Gunslinging . | . . . . . Exploded . | . . . . . Melee . | . . . . . Uniques/NPCs Destroyed . | . . . . . Combat | -11 -10 -9 -8 -8 -------- Run | Yrd Mat Mat Mat Sto Hostile Shots Fired 135 | . 5 37 . 93 Missed 64 | . 3 16 . 45 Damage Taken 943 | . 63 205 . 675 Core 862 | . 63 205 . 594 Absorbed by Shields . | . . . . . Core Remaining (%) 74 | 100 74 48 . . Volleys Fired . | . . . . . Largest . | . . . . . Hottest . | . . . . . Shots Fired . | . . . . . Gun . | . . . . . Cannon . | . . . . . Launcher . | . . . . . Special . | . . . . . Kinetic . | . . . . . Thermal . | . . . . . Explosive . | . . . . . Electromagnetic . | . . . . . Robot Hit Streak . | . . . . . Robot Miss Streak . | . . . . . Penetration Max . | . . . . . Secondary Targets . | . . . . . Shots Hit Robots . | . . . . . Core Hits . | . . . . . Critical Kills . | . . . . . Critical Parts Destroyed . | . . . . . Critical Strikes . | . . . . . Melee Attacks . | . . . . . Impact . | . . . . . Slashing . | . . . . . Piercing . | . . . . . Sneak Attacks . | . . . . . Combat Hostiles . | . . . . . Follow-up Attacks . | . . . . . Damage Inflicted 51 | . . 19 . 32 Guns . | . . . . . Cannons . | . . . . . Explosions . | . . . . . Melee . | . . . . . Ramming 51 | . . 19 . 32 Kinetic . | . . . . . Thermal . | . . . . . Explosive . | . . . . . Electromagnetic . | . . . . . Impact . | . . . . . Slashing . | . . . . . Piercing . | . . . . . Highest Corruption . | . . . . . Average Corruption . | . . . . . Corruption Purged . | . . . . . Corruption Blocked . | . . . . . Overload Shots . | . . . . . Overflow Damage . | . . . . . Projectiles . | . . . . . Explosions . | . . . . . Melee . | . . . . . Knockbacks . | . . . . . Impact . | . . . . . Kinetic . | . . . . . Secondary . | . . . . . Self-Inflicted Damage 23 | . . 9 . 14 Shots . | . . . . . Rammed 8 | . . 2 . 6 Targets Rammed 8 | . . 2 . 6 Kicked . | . . . . . Crushed . | . . . . . Highest Temperature 15 | . . . . 15 Average Temperature 11 | . . . . 11 Received Heat Transfer 207 | . 15 39 . 153 Siege Activations . | . . . . . Robots Corrupted . | . . . . . Combat Hostiles . | . . . . . Parts Fried . | . . . . . Impact Corruptions . | . . . . . Robots Melted . | . . . . . Combat Hostiles . | . . . . . Parts Melted . | . . . . . Heat Transferred . | . . . . . Parts Sabotaged . | . . . . . Parts Stolen . | . . . . . Parts Stripped . | . . . . . Power Chain Reactions . | . . . . . Alert | -11 -10 -9 -8 -8 ------- Run | Yrd Mat Mat Mat Sto Peak Influence 201 | . 15 35 29 201 Initial 14 | . . 5 14 11 Average 51 | . 4 13 21 84 Maximum Alert Level 1 | . . . . 1 Low Security (%) 99 | 100 100 100 100 99 Level 1 . | . . . . . Level 2 . | . . . . . Level 3 . | . . . . . Level 4 . | . . . . . Level 5 . | . . . . . High Security . | . . . . . Max Security . | . . . . . Squads Dispatched 4 | . . . . 4 Investigation 4 | . . . . 4 Extermination . | . . . . . Reinforcement . | . . . . . Assault . | . . . . . Garrison . | . . . . . Intercept . | . . . . . Searches Triggered . | . . . . . Construction Impeded . | . . . . . Haulers Reinforced . | . . . . . Active Scanning Responses . | . . . . . Cargo Convoy Interrupts . | . . . . . Stealth | -11 -10 -9 -8 -8 --------- Run | Yrd Mat Mat Mat Sto Distress Signals 1 | . . . . 1 Communications Jammed . | . . . . . Distress Signals . | . . . . . Times Spotted 31 | . 3 8 1 19 Peak Tracking Total 14 | . 3 8 1 14 Tactical Retreats 3 | . . 1 . 2 Traps | -11 -10 -9 -8 -8 ------- Run | Yrd Mat Mat Mat Sto Traps Triggered 4 | . 1 . . 3 Indirectly . | . . . . . Trap Hack Attempts . | . . . . . Triggered . | . . . . . Disarmed . | . . . . . Reprogrammed . | . . . . . Reused . | . . . . . Traps Extracted . | . . . . . Installed . | . . . . . Triggered . | . . . . . Machines | -11 -10 -9 -8 -8 ---------- Run | Yrd Mat Mat Mat Sto Machines Disabled . | . . . . . Max in Single Turn . | . . . . . Machines Repaired . | . . . . . Machines Dismantled . | . . . . . Machines Sabotaged . | . . . . . Overloaded Fab Kills . | . . . . . Hacking | -11 -10 -9 -8 -8 --------- Run | Yrd Mat Mat Mat Sto Machines Accessed 7 | . . 1 . 6 Terminals 7 | . . 1 . 6 Fabricators . | . . . . . Repair Stations . | . . . . . Recycling Units . | . . . . . Scanalyzers . | . . . . . Garrison Access . | . . . . . Total Hacks 17 | . . 4 . 13 Successful 3 | . . . . 3 Failed 14 | . . 4 . 10 Catastrophic 4 | . . 1 . 3 Database Lockouts . | . . . . . Manual 8 | . . 4 . 4 Terminals 17 | . . 4 . 13 Fabricators . | . . . . . Repair Stations . | . . . . . Recycling Units . | . . . . . Scanalyzers . | . . . . . Garrison Access . | . . . . . Terminal Hacks 3 | . . . . 3 Open Door 1 | . . . . 1 Branch Access Points 1 | . . . . 1 Zone Layout 1 | . . . . 1 Fabricator Hacks . | . . . . . Repair Station Hacks . | . . . . . Recycling Unit Hacks . | . . . . . Scanalyzer . | . . . . . Garrison Access Hacks . | . . . . . Unauthorized Hacks . | . . . . . Terminals . | . . . . . Fabricators . | . . . . . Repair Stations . | . . . . . Recycling Units . | . . . . . Scanalyzers . | . . . . . Garrison Access . | . . . . . Data Cores Recovered . | . . . . . Used . | . . . . . Hacking Detections 6 | . . 1 . 5 Full Trace Events 2 | . . . . 2 Feedback Events . | . . . . . Feedback Blocked . | . . . . . Robot Schematics Acquired . | . . . . . Robots Built . | . . . . . Authchips . | . . . . . Time . | . . . . . Total Robot Build Rating . | . . . . . Part Schematics Acquired . | . . . . . Parts Built . | . . . . . Authchips . | . . . . . Time . | . . . . . Total Part Build Rating . | . . . . . Parts Repaired . | . . . . . Time . | . . . . . Parts Recycled . | . . . . . Recycled Matter . | . . . . . Retrieved Matter . | . . . . . Retrieved Components . | . . . . . Parts Scanalyzed . | . . . . . Part Schematics Acquired . | . . . . . Parts Damaged . | . . . . . Bothacking | -11 -10 -9 -8 -8 ------------ Run | Yrd Mat Mat Mat Sto Used RIF Installer . | . . . . . Robots Hacked . | . . . . . Non-combat . | . . . . . Combat . | . . . . . Robot Hacks Applied . | . . . . . Relay Couplers Released . | . . . . . Fabnet Peak Effective % . | . . . . . Robots Rewired . | . . . . . Allies Hacked . | . . . . . Hacks Repelled . | . . . . . Allies | -11 -10 -9 -8 -8 -------- Run | Yrd Mat Mat Mat Sto Total Allies . | . . . . . Largest Group . | . . . . . Highest-Rated Group . | . . . . . Highest-Rated Ally . | . . . . . Total Orders . | . . . . . Ally Attacks . | . . . . . Total Damage . | . . . . . Kills . | . . . . . Allies Corrupted . | . . . . . Allies Melted . | . . . . . Intel | -11 -10 -9 -8 -8 ------- Run | Yrd Mat Mat Mat Sto Robot Analysis Total . | . . . . . Derelict Logs Recovered . | . . . . . Drone Launches . | . . . . . Drone Recoveries . | . . . . . Exploration | -11 -10 -9 -8 -8 ------------- Run | Yrd Mat Mat Mat Sto Turns Passed 225 | 10 29 44 17 125 Spaces Moved 442 | 20 58 83 32 249 Core 343 | 20 58 83 32 150 Treads . | . . . . . Legs . | . . . . . Wheels . | . . . . . Hover . | . . . . . Flight 99 | . . . . 99 Fastest Speed 31 | 50 50 50 50 31 Average Speed 46 | 50 50 50 50 42 Slowest Speed 50 | 50 50 50 50 50 Overloaded Moves . | . . . . . Propulsion Burnouts . | . . . . . Robots Hopped 12 | . . . . 12 Cave-ins Triggered . | . . . . . Exploration Rate (%) 20 | 3 20 15 6 56 Regions Visited 4 Branch Regions 1 Pre-discovered Areas . | . . . . . Known Exits Taken . | . . . . . Unknown Exits Taken 4 | 1 1 1 1 . Scrap Searched . | . . . . . Spaces Dug . | . . . . . Terrain Destroyed . | . . . . . Melee . | . . . . . Projectile . | . . . . . AOE . | . . . . . Terrain Rammed . | . . . . . Walls Destroyed . | . . . . . Machines Disabled . | . . . . . Actions | -11 -10 -9 -8 -8 --------- Run | Yrd Mat Mat Mat Sto Total 444 | 19 57 84 32 252 Wait 2 | . . . . 2 Move 416 | 19 57 82 31 227 Hop 10 | . . . . 10 Pick Up 3 | . . . 1 2 Fast Attach 5 | . . . . 5 Attach . | . . . . . Detach . | . . . . . Swap . | . . . . . Drop . | . . . . . Fire . | . . . . . Melee . | . . . . . Ram 8 | . . 2 . 6 Kick . | . . . . . Crush . | . . . . . Escape Stasis . | . . . . . Rewire . | . . . . . Trap . | . . . . . Miscellaneous . | . . . . . Route ------- -11/Scrapyard -10/Materials -9/Materials -8/Materials -8/Storage (discovered 2 exits: [*Fac] / Rec) History --------- Turn | Location | Event 4 | -11/Scrapyard | Discovered new exit (range 15) 11 | -11/Scrapyard | Entered Materials 34 | -10/Materials | Discovered new exit (range 14) 40 | -10/Materials | Entered another Materials area 40 | -9/Materials | Evolved 2 slots: Propulsion x2 76 | -9/Materials | Discovered new exit (range 16) 83 | -9/Materials | Core integrity fell below 50% 84 | -9/Materials | Entered another Materials area 84 | -8/Materials | Evolved 2 slots: Utility x2 85 | -8/Materials | Discovered new exit (range 11) 101 | -8/Materials | Entered Storage 166 | -8/Storage | Discovered new exit (range 14) 168 | -8/Storage | Core integrity fell below 50% 198 | -8/Storage | Core integrity fell below 20% 222 | -8/Storage | Identified exit to Recycling 226 | -8/Storage | Destroyed by Light Deuterium Engine chain reaction Last Messages --------------- 00177_ ALERT: Alarm triggered, dispatching investigation squad. 00181_ Connecting with Door Terminal... >>Open(Door) Sealed Heavy Doors opened. 00183_ Acquired Prototype Flight Unit. 00183_ Identified Imp. Flight Unit. 00184_ Acquired Imp. Flight Unit. 00198_ Penetrated by Slug. 00206_ U-05 Engineer lays Concrete. 00212_ Acquired 3 matter. 00217_ Acquired Lgt. Deuterium Engine. 00222_ Connecting with Terminal... >>Access(Branch) Found 1 branch access point: (11,8) Recycling Map updated. 00226_ Triggered Proton Bomb Trap. 00226_ A bubble of electromagnetic force engulfs the area. 00226_ Chain reaction triggered in Lgt. Deuterium Engine. Map ----- +----------------------------------------------------+ | ?????????????????????????????????????????????????? | | ?????????????????????????????????????????????????? | | ?????????????????????????????????????????????????? | | ?????????????????????????????????????????????????? | | ?????????????????????????????????????????????????? | | ?????????????????????????????????????????????????? | | ?????????????????????????????????????????????????? | | ?????????????????????????????????????????????????? | | ??>??????????????????????????????????????????????? | | ?????????????????????????????????????????????????? | | ?????????????????????????????????????????????????? | | ?????????????????????????????????????????????????? | | ???????????????????????????####### ##????????????? | | ???????????????????????????# #????????????? | | ??????????????????????###### """ #???########## | | ??????????????????????? # """ #???# # | | ??????????????????????? Y # """ #???# """ # | | ??????????????????????? + #???# """ + | | ???????????????????????r # """ """#???# """ # | | ???????????????????????# ## """ R"#???# # | | ???????????????????????# ## """ """#???# """ # | | ???????????????????????# ## #??## """ # | | ???????????????????????# ###########??# """ # | | ???????????????????????# #?????#####??## # | | ???????????????????????# #?????## ##???#####/#### | | ???????????????????????# @#?????##"##?####### #??# | | ???????????????????????# ######## T#?#"""""# #??# | | ???????????????????????# ###+####""T""# #### | | ???????????????????????# % %+ | | ???????????????????????###### ############ ###### | | ????????????????????????????# # ## ###### | | ????????????????????????????# # ## / | | ??????????????????????????### # """ """ ## ## | | ??????????????????????#####T# # """ """ ## ## | | ??????????????????????# # """ """ ## ## | | ??????????????????????# # """ """ ## ######+ | | ??????????????????????# # """ """ + | | ??????????????????????# / # | | ??????????????????????# #############/### | | ??????????????######??# #??????# %= | | ?????########## #??# #??????# | | ?????# ##T# #?##/###????# | | ?????# # #?# #????######/#########/## | | ?????# + ==#?# ! #?????# % ## | | ?????# # ==#?# #?????# # | | ?????# # # ==#?# #?????# ## """" | | ?????## ##########?# ####### ## """" | | ??????# #??????????# + % + """ """ ## """" | | ??????# #??????????#/ # ##### """ """ # """" | | ??????# #??????????# # #???# """ """ ## | +----------------------------------------------------+ Best States ------------- Heat Dissipation 31 Energy Generation 14 Energy Capacity 140 Matter Stores 300 Matter Capacity 300 Sight Range 16 Terrain Scan Density 10 Evasion (%) 63 Item Schematics ----------------- None Robot Schematics ------------------ None Fabricated ------------ Nothing Alien Tech Used ----------------- None Achievements -------------- None Challenges ------------ None Game ------ Seed DynamicFissionArmor Manual? 0 Play Time 00:08:38 Cumulative 86.1 hours Start 2024.05.04 @ 05:28:00 End 2024.05.04 @ 05:33:42 Sessions 1 Manual Loads 0 Difficulty Rogue Special Mode None Game No. 83 Rogue 83 Adventurer 0 Explorer 0 Win Type - Total 11 Types 10/0/1/0/0/0/0/0/0 Lore% 51 Gallery% 46 Achievement% 46 Wizard Run 0 Options --------- Layout 0 ASCII 0 Keyboard 1 Movement Vi Keybinds 0 Fullscreen 2 Font 16/SmallcapsGlow Map View 64x51 Zoom Use 0% Tactical HUD 1 Map Filters NONE Filters NONE Steam X RUN: cfe599d5-09a6-47bd-b9f3-c70d985bd225